[Event "Polish University-ch Open 2024"]
[Site "Lublin"]
[Date "2024.02.24"]
[Round "9.1"]
[White "Kosakowski, Jakub"]
[Black "Szpar, Milosz"]
[Result "1-0"]
[ECO "D04"]
[WhiteElo "2482"]
[BlackElo "2495"]
[Annotator "TA"]
[PlyCount "159"]
[EventDate "2024.02.22"]
[EventType "swiss"]
[EventCountry "POL"]
[SourceTitle "playchess.com"]
[Source "ChessBase"]
[SourceQuality "1"]
[TimeControl "600+3"]

{[%evp 65,158,76,76,75,75,54,76,54,76,75,75,54,69,69,69,69,69,69,69,62,69,69,69,62,62,62,62,62,62,62,62,62,62,62,62,62,62,62,62,62,62,62,62,62,62,62,62,62,62,62,62,62,62,62,62,62,62,62,62,30,30,30,30,30,30,30,30,28,30,30,30,30,30,30,30,30,30,30,30,30,30,30,29967,29967,29968,29966,29953,12782,29996,29997,29997,29998,29998,29999,29999]} 1. Nf3 {[%emt 0:00:20]} d5 {[%emt 0:00:03]} 2. e3 {[%emt 0:00:03]} c5 {[%emt 0:00:09]} 3. d4 {[%emt 0:00:10]} Nf6 {[%emt 0:00:06]} 4. Nbd2 {[%emt 0:00:06]} Nc6 {[%emt 0:01:51]} 5. dxc5 {[%emt 0:00:03]} e6 {[%emt 0:00:31]} 6. a3 {[%emt 0:00:07] D04: Colle System.} a5 {[%emt 0:01:09]} 7. Bb5 {[%emt 0:00:25]} Bxc5 {[%emt 0:00:22]} 8. b3 {[%emt 0:00:21]} O-O {[%emt 0:00:06]} 9. Bb2 {[%emt 0:00:02]} Qe7 {[%emt 0:00:16]} 10. O-O {[%emt 0:00:09]} Bd6 {[%emt 0:00:59]} 11. c4 {[%emt 0:03:49]} Na7 {[%emt 0:00:08]} 12. a4 $146 {[%emt 0:00:09]} ({Predecessor:} 12. Ba4 dxc4 13. Nxc4 Bc7 14. Nd4 Rd8 15. Qe2 e5 16. Nb5 Nxb5 17. Bxb5 e4 18. h3 {1-0 Mamedjarova,Z (2345)-Badelka,O (2407) TUR-chT Ankara 2018 (8.5)}) 12... e5 {[%emt 0:01:32]} 13. cxd5 {[%emt 0:00:09]} Nxb5 {[%emt 0:00:56]} 14. axb5 {[%emt 0:00:02]} Bd7 {[%emt 0:00:25]} 15. Nc4 {[%emt 0:01:01]} Bxb5 {[%emt 0:00:21]} 16. Bxe5 {[%emt 0:01:51]} Bxe5 {[%emt 0:00:06]} 17. Nfxe5 {[%emt 0:00:01]} Rfd8 {[%emt 0:00:02]} 18. d6 {[%emt 0:00:01]} Qe6 {[%emt 0:00:01]} 19. Qd4 {[%emt 0:00:01]} Bxc4 {[%emt 0:00:25]} 20. Nxc4 {[%emt 0:00:03]} b5 {[%emt 0:00:04]} 21. Nxa5 {[%emt 0:00:18]} Rxd6 {[%emt 0:00:19]} 22. Nb7 {[%emt 0:01:00]} Rxa1 {[%emt 0:00:18]} 23. Qxa1 {[%emt 0:00:01]} Ra6 {[%emt 0:00:07]} 24. Qd4 {[%emt 0:00:02]} Qd7 {[%emt 0:00:28]} 25. Qxd7 {[%emt 0:00:12]} Nxd7 {[%emt 0:00:01]} 26. Rd1 {[%emt 0:00:01]} g6 {[%emt 0:00:03]} 27. h3 {[%emt 0:00:13]} Nf6 {[%emt 0:00:07]} 28. Nd6 {[%emt 0:00:20]} Ra3 {[%emt 0:00:11]} 29. b4 {[%emt 0:00:21]} Ra6 {[%emt 0:00:09]} 30. Nxb5 {[%emt 0:00:03]} Rb6 {[%emt 0:00:00]} 31. Rd6 {[%emt 0:00:07]} Rxb5 {[%emt 0:00:01]} 32. Rxf6 {[%emt 0:00:01]} Rxb4 {[%emt 0:00:00]} 33. g3 {[%emt 0:00:01]} h5 {[%emt 0:00:02]} 34. Kg2 {[%emt 0:00:01]} Kg7 {[%emt 0:00:03]} 35. Rd6 {[%emt 0:00:01]} Ra4 {[%emt 0:00:05]} 36. Kf3 {[%emt 0:00:04]} Rb4 {[%emt 0:00:15]} 37. Rd4 {[%emt 0:00:05]} Rb5 {[%emt 0:00:01]} 38. g4 {[%emt 0:00:02]} hxg4+ {[%emt 0:00:02]} 39. hxg4 {[%emt 0:00:01]} Kf6 {[%emt 0:00:02]} 40. Kg3 {[%emt 0:00:02]} g5 {[%emt 0:00:07]} 41. Kf3 {[%emt 0:00:01]} Ra5 {[%emt 0:00:06]} 42. Ke4 {[%emt 0:00:05]} Re5+ {[%emt 0:00:03]} 43. Kd3 {[%emt 0:00:01]} Ra5 {[%emt 0:00:01]} 44. f3 {[%emt 0:00:11]} Ke6 {[%emt 0:00:05]} 45. Rb4 {[%emt 0:00:02]} Rd5+ {[%emt 0:00:02]} 46. Kc4 {[%emt 0:00:03]} Rd1 {[%emt 0:00:06]} 47. Rb6+ {[%emt 0:00:02]} Ke5 {[%emt 0:00:01]} 48. Rb5+ {[%emt 0:00:01]} Kf6 {[%emt 0:00:01]} 49. Rd5 {[%emt 0:00:02]} Rf1 {[%emt 0:00:03]} 50. Rf5+ {[%emt 0:00:01]} Ke6 {[%emt 0:00:02]} 51. Kd3 {[%emt 0:00:04]} ({Of course not} 51. Rxg5 Rxf3 52. Kd3 Rf1 $11) 51... f6 {[%emt 0:00:02]} 52. Ke4 {[%emt 0:00:10]} Ra1 {[%emt 0:00:04]} 53. Rc5 {[%emt 0:00:02]} Ra4+ {[%emt 0:00:01]} 54. Kd3 {[%emt 0:00:01]} Ra3+ {[%emt 0:00:00]} 55. Rc3 {[%emt 0:00:02]} Ra1 {[%emt 0:00:02]} 56. Rc4 {[%emt 0:00:02]} Ra5 {[%emt 0:00:01]} 57. Rc2 {[%emt 0:00:09]} Ra3+ {[%emt 0:00:02]} 58. Ke2 {[%emt 0:00:01]} Rb3 {[%emt 0:00:03]} 59. Kf2 {[%emt 0:00:01]} Ra3 {[%emt 0:00:02]} 60. Rc6+ {[%emt 0:00:02]} Ke5 {[%emt 0:00:03]} 61. Rc5+ {[%emt 0:00:01]} Ke6 {[%emt 0:00:00]} 62. f4 {[%emt 0:00:01]} gxf4 {[%emt 0:00:05]} 63. exf4 {[%emt 0:00:00]} Rb3 {[%emt 0:00:04]} 64. Rc6+ {[%emt 0:00:05]} Kf7 {[%emt 0:00:05]} 65. Rd6 {[%emt 0:00:04]} Kg7 {[%emt 0:00:07]} 66. Re6 {[%emt 0:00:02]} Ra3 {[%emt 0:00:03]} 67. Re3 {[%emt 0:00:01]} Ra4 {[%emt 0:00:06]} 68. Kf3 {[%emt 0:00:06]} Rb4 {[%emt 0:00:01]} 69. Re7+ {[%emt 0:00:04]} Kh6 {[%emt 0:00:10]} 70. Ke3 {[%emt 0:00:09]} Ra4 {[%emt 0:00:03]} 71. Rd7 $1 {[%emt 0:00:03]} Ra1 {[%emt 0:00:03]} 72. Ke4 {[%emt 0:00:01]} Ra5 {[%emt 0:00:02]} 73. Rd5 {[%emt 0:00:01]} Ra6 $2 {[%emt 0:00:06][%mdl 8192]} (73... Ra7 $11) 74. Kf5 {[%emt 0:00:02]} Rb6 {[%emt 0:00:01]} 75. Rd8 {[%emt 0:00:07]} Kg7 {[%emt 0:00:04]} 76. Rd7+ {[%emt 0:00:01]} Kh6 {[%emt 0:00:04]} 77. g5+ {[%emt 0:00:01]} (77. Rf7 Rb5+ 78. Kxf6 Rb6+ 79. Ke5 Rb5+ 80. Kd4 Rb4+ 81. Kc5 Rb8 82. g5+ Kg6 83. Rf6+ Kg7 $18) 77... fxg5 {[%emt 0:00:02]} 78. fxg5+ {[%emt 0:00:01]} Kh5 {[%emt 0:00:00]} 79. Rh7+ {[%emt 0:00:01]} Rh6 {[%emt 0:00:00]} 80. Rxh6# {[%emt 0:00:01]} 1-0

[Event "Polish University-ch Open 2024"]
[Site "Lublin"]
[Date "2024.02.24"]
[Round "9.2"]
[White "Mis, Mieszko"]
[Black "Suder, Jakub"]
[Result "1/2-1/2"]
[ECO "E05"]
[WhiteElo "2325"]
[BlackElo "2333"]
[Annotator "TA"]
[PlyCount "70"]
[EventDate "2024.02.22"]
[EventType "swiss"]
[EventCountry "POL"]
[SourceTitle "playchess.com"]
[Source "ChessBase"]
[SourceQuality "1"]
[TimeControl "600+3"]

{[%evp 13,70,0,0,0,0,0,35,41,38,8,33,0,9,-68,-48,-88,-14,-80,-83,-85,-45,-74,-43,-43,-5,-16,0,0,1,0,0,0,0,0,0,0,0,0,0,0,0,0,0,0,0,0,0,0,0,0,0,0,0,0,0,0,0,0,0]} 1. Nf3 {[%emt 0:00:02]} e6 {[%emt 0:00:01]} 2. c4 {[%emt 0:00:02]} d5 {[%emt 0:00:01]} 3. g3 {[%emt 0:00:02]} Nf6 {[%emt 0:00:01]} 4. Bg2 {[%emt 0:00:01]} Be7 {[%emt 0:00:01]} 5. O-O {[%emt 0:00:03]} O-O {[%emt 0:00:02]} 6. d4 {[%emt 0:00:12]} dxc4 {[%emt 0:00:02]} 7. Qc2 {[%emt 0:00:03]} b5 {[%emt 0:00:01]} 8. a4 {[%emt 0:00:11]} b4 {[%emt 0:00:04]} 9. Nfd2 {[%emt 0:00:11]} Nd5 {[%emt 0:00:05]} 10. Nxc4 {[%emt 0:00:15] White is slightly better.} ({Much worse is} 10. Qxc4 Ba6 11. Qc2 c5 (11... Bxe2 12. Re1 $17) 12. dxc5 Nd7 $17) 10... c5 {[%emt 0:00:01]} 11. dxc5 {[%emt 0:00:33] White wants to play e4.} Bxc5 {[%emt 0:00:02]} 12. Rd1 {[%emt 0:00:15] [#] And now e4 would win.} Nd7 $1 {[%emt 0:00:10]} 13. Nbd2 {[%emt 0:01:38]} ({Of course not} 13. Bxd5 exd5 14. Be3 Bb7 (14... dxc4 15. Bxc5 Nxc5 16. Rxd8 $16) 15. Bxc5 Nxc5 $17) (13. e4 $11 N5f6 14. Be3 Bxe3 15. Nxe3) 13... Ba6 $15 {[%emt 0:00:42]} 14. Ne4 {[%emt 0:00:33]} Be7 {[%emt 0:00:27]} (14... Rc8 $17 {...Bxc4 would now be deadly.} 15. b3 Be7) 15. b3 {[%emt 0:00:55]} (15. Ned6 $11) 15... Rc8 $17 {[%emt 0:00:21]} 16. Bb2 {[%emt 0:00:07] Dodges Ne5} N7b6 {[%emt 0:00:24]} 17. Ned2 {[%emt 0:00:15]} Qc7 {[%emt 0:00:31]} 18. Rac1 {[%emt 0:00:08]} Rfd8 {[%emt 0:00:26]} 19. Qb1 {[%emt 0:00:06] [#] The position is equal.} Nc3 $1 {[%emt 0:01:25]} 20. Bxc3 {[%emt 0:00:04]} bxc3 {[%emt 0:00:02]} 21. Rxc3 {[%emt 0:00:13]} Bb4 {[%emt 0:00:30]} 22. Rcc1 {[%emt 0:00:21][%cal Bc3c1,Bc1d1,Bd1d7][%mdl 32]} Nxc4 {[%emt 0:01:20]} 23. Nxc4 {[%emt 0:00:03][%cal Oc4d6] Threatens to win with Nd6!} Rxd1+ {[%emt 0:01:02]} 24. Rxd1 {[%emt 0:00:01]} Bxc4 {[%emt 0:00:02]} 25. bxc4 {[%emt 0:01:34]} Qxc4 {[%emt 0:00:10]} 26. Be4 {[%emt 0:00:13]} g6 {[%emt 0:00:15]} 27. Rd7 {[%emt 0:00:24]} a5 {[%emt 0:00:24]} 28. Qd3 {[%emt 0:00:42]} Qxd3 {[%emt 0:00:25]} 29. Bxd3 $11 {[%emt 0:00:03][%mdl 4096] Endgame. KRB-KRB} Kg7 {[%emt 0:00:29]} 30. Kg2 {[%emt 0:00:03]} Kf6 {[%emt 0:00:08]} 31. Ra7 {[%emt 0:00:06]} Re8 {[%emt 0:00:27]} 32. Bb5 {[%emt 0:00:19]} Re7 {[%emt 0:00:03]} 33. Ra8 {[%emt 0:00:12]} h5 {[%emt 0:00:06]} 34. h4 {[%emt 0:00:01]} Rc7 {[%emt 0:00:05]} 35. Ra6 {[%emt 0:00:45]} Ke5 {[%emt 0:01:33] Weighted Error Value: White=0.16 (very precise) /Black=0.11 (very precise) .  Mistake:       	White=2     	Black=1      Inaccurate:     	White=2     	Black=4      OK:         	White=7     	Black=13     Best:        	White=2     	Black=1      Strong:       	---       	Black=1} 1/2-1/2

[Event "Polish University-ch Open 2024"]
[Site "Lublin"]
[Date "2024.02.24"]
[Round "9.3"]
[White "Kowalski, Igor"]
[Black "Janik, Igor"]
[Result "0-1"]
[ECO "B06"]
[WhiteElo "2372"]
[BlackElo "2499"]
[Annotator "TA"]
[PlyCount "92"]
[EventDate "2024.02.22"]
[EventType "swiss"]
[EventCountry "POL"]
[SourceTitle "playchess.com"]
[Source "ChessBase"]
[SourceQuality "1"]
[TimeControl "600+3"]

{[%evp 21,92,34,41,35,28,37,18,4,0,0,54,-89,-85,-102,-104,-200,-188,-185,-136,-218,-177,-274,-231,-230,-233,-294,-56,-310,-129,-253,-200,-216,-187,-239,-167,-154,-108,-141,-85,-68,-79,-85,-119,-425,-233,-593,-575,-579,-560,-718,-881,-889,-847,-2162,-1084,-29984,-29985,-29975,-29978,-7741,-29962,-6532,-6478,-29987,-29988,-29988,-29989,-29989,-29990,-29990,-29990,-29993,-29991]} 1. d4 {[%emt 0:00:01]} g6 {[%emt 0:00:02]} 2. e4 {[%emt 0:00:05]} c6 {[%emt 0:00:03]} 3. Nc3 {[%emt 0:00:03]} Bg7 {[%emt 0:00:08]} 4. h4 {[%emt 0:00:17]} h6 {[%emt 0:00:10]} 5. Be3 {[%emt 0:00:09]} Nf6 {[%emt 0:00:12]} 6. f3 {[%emt 0:00:06] B06: Modern Defence.} d6 {[%emt 0:00:10]} 7. Qd2 {[%emt 0:00:03]} b5 {[%emt 0:00:20]} 8. O-O-O {[%emt 0:00:13]} Bb7 {[%emt 0:00:14]} 9. Kb1 {[%emt 0:00:26]} Nbd7 {[%emt 0:00:16]} 10. g4 {[%emt 0:00:38]} Nb6 $146 {[%emt 0:00:08]} ({Predecessor:} 10... a5 11. Nh3 Qc7 12. Bd3 b4 13. Ne2 c5 14. dxc5 Nxc5 15. Bb5+ Bc6 16. Bxc6+ Qxc6 {1-0 Manotas,S-Barros,R (2105) ATL-ch Barranquilla 2000 (2)}) 11. b3 {[%emt 0:00:03]} h5 {[%emt 0:00:09]} 12. g5 {[%emt 0:01:01]} Nfd7 {[%emt 0:00:01]} 13. f4 {[%emt 0:01:18]} b4 {[%emt 0:01:05]} 14. Nce2 {[%emt 0:00:02]} c5 {[%emt 0:00:01]} 15. Ng3 {[%emt 0:00:04]} Qc7 {[%emt 0:00:32]} ({Black should play} 15... a5 $11) 16. Nf3 {[%emt 0:00:49]} (16. N1e2 $14 {keeps the upper hand.}) 16... a5 {[%emt 0:00:17]} 17. f5 {[%emt 0:01:49]} c4 {[%emt 0:00:01]} (17... O-O {is more complex.} 18. Rc1 gxf5 19. Nxh5 Bxe4 20. g6 Bxf3 21. Nxg7 Kxg7 22. Bg2 Bxg2 23. Bh6+ Kg8) 18. f6 {[%emt 0:01:50]} (18. Rh2 $17 {was necessary.}) 18... exf6 $19 {[%emt 0:00:05]} 19. d5 {[%emt 0:00:07]} fxg5 {[%emt 0:00:23]} (19... a4 $1 $19 20. Bd4 axb3 21. axb3 c3) 20. Nxg5 {[%emt 0:01:59]} (20. Bd4 $17 Bxd4 21. Qxd4) 20... Ne5 {[%emt 0:00:12]} 21. Be2 {[%emt 0:00:00]} (21. Bd4 {was worth a try.}) 21... Ba6 {[%emt 0:00:22]} 22. Bd4 {[%emt 0:00:00]} Nbd7 {[%emt 0:01:32]} 23. Rhf1 {[%emt 0:00:00]} Rf8 $2 {[%emt 0:00:01]} (23... c3 $19 24. Qe3 a4 25. bxa4 (25. Rxf7 axb3 26. cxb3 c2+ 27. Kc1 cxd1=N+ $19) 25... Bxe2 26. Qxe2 Qa5 (26... Rxa4 $2 27. Nxf7 O-O 28. Nxe5 $19)) 24. Nh7 $2 {[%emt 0:00:00][%mdl 8192] [#]} (24. Ne6 $1 $15 fxe6 25. dxe6) 24... a4 {[%emt 0:00:05]} (24... c3 $1 $19 {[%mdl 512] and Black stays clearly on top.} 25. Bxe5 (25. Qc1 Bxe2) 25... Bxe5 (25... cxd2 $2 26. Bxg7 Rg8 27. Bd4 $17)) 25. Nxf8 {[%emt 0:00:00]} (25. Qxb4 $17 axb3 26. cxb3) 25... Kxf8 {[%emt 0:00:04]} 26. Qxb4 {[%emt 0:00:10]} axb3 {[%emt 0:00:05]} 27. axb3 {[%emt 0:00:11]} (27. cxb3 {keeps fighting.} Nc5 28. Qc3) 27... cxb3 {[%emt 0:00:24]} 28. cxb3 {[%emt 0:00:00]} Bxe2 {[%emt 0:00:20]} ({Black should try} 28... Rb8 29. Qa3 Bxe2 30. Nxe2 Kg8) 29. Nxe2 $17 {[%emt 0:00:00] [#]} Rb8 {[%emt 0:00:07]} (29... Nc5 $142 $1 30. Nc1 Nxe4) 30. Qc3 $17 {[%emt 0:00:00]} Qd8 {[%emt 0:00:11]} 31. Nf4 {[%emt 0:00:00]} Kg8 $1 {[%emt 0:00:07]} 32. Rg1 $2 {[%emt 0:00:00][%mdl 8192]} (32. Ne6 $17 fxe6 33. dxe6) 32... Qxh4 {[%emt 0:03:52]} (32... Nc5 $142 33. Bxc5 dxc5 34. Nxh5 c4 (34... Qxh4 35. Nxg7 Qxe4+ 36. Ka1 $14)) 33. Rdf1 $2 (33. Qg3 Qf6 34. Rg2) 33... Nc5 $19 {[%emt 0:00:00]} 34. Bxc5 {[%emt 0:00:00]} dxc5 {[%emt 0:00:00]} 35. d6 {[%emt 0:00:00]} c4 {[%emt 0:00:00]} 36. b4 {[%emt 0:00:14]} Nc6 {[%emt 0:00:00]} 37. Nxg6 {[%emt 0:00:08]} Qxe4+ {[%emt 0:00:00]} (37... Rxb4+ 38. Kc1 fxg6 39. Rxg6 $15) 38. Qc2 {[%emt 0:00:00]} Rxb4+ {[%emt 0:00:00]} 39. Kc1 {[%emt 0:00:01]} Qe3+ {[%emt 0:00:00]} 40. Kd1 {[%emt 0:00:00]} fxg6 {[%emt 0:00:00]} 41. Rxg6 {[%emt 0:00:01]} Qd4+ {[%emt 0:00:00]} 42. Kc1 {[%emt 0:00:12]} Qa1+ {[%emt 0:00:00]} ({But not} 42... Rb2 $2 43. Rxg7+ Qxg7 44. Qxb2 $18) 43. Kd2 {[%emt 0:00:01]} Qxf1 {[%emt 0:00:00]} 44. Rxg7+ {[%emt 0:00:01]} Kxg7 {[%emt 0:00:00]} 45. Qc3+ {[%emt 0:00:01]} Qf6 {[%emt 0:00:00]} 46. Qg3+ {[%emt 0:00:01]} Kh6 {[%emt 0:00:00]} 0-1

[Event "Polish University-ch Open 2024"]
[Site "Lublin"]
[Date "2024.02.24"]
[Round "9.4"]
[White "Brzezinski, Mateusz"]
[Black "Psyk, Radoslaw"]
[Result "1-0"]
[ECO "D02"]
[WhiteElo "2176"]
[BlackElo "2461"]
[Annotator "TA"]
[PlyCount "91"]
[EventDate "2024.02.22"]
[EventType "swiss"]
[EventCountry "POL"]
[SourceTitle "playchess.com"]
[Source "ChessBase"]
[SourceQuality "1"]
[TimeControl "600+3"]

{[%evp 9,91,-24,50,45,60,56,45,32,51,33,31,30,35,25,25,22,7,-52,-41,-31,-36,-27,167,151,175,166,165,185,235,262,262,98,306,243,303,282,263,182,228,122,414,48,751,778,783,777,745,735,929,941,1037,953,979,916,1048,899,1331,1331,1748,1781,29979,9706,29984,29985,29989,29987,29987,29988,29988,29989,29989,29988,29989,29979,29979,29980,29980,29981,29981,29982,29984,29983,29993,29994]} 1. d4 {[%emt 0:00:02]} d5 {[%emt 0:00:03]} 2. Nf3 {[%emt 0:00:01]} Nf6 {[%emt 0:00:01]} 3. c3 {[%emt 0:00:01]} c5 {[%emt 0:00:31]} 4. dxc5 {[%emt 0:00:01]} a5 {[%emt 0:00:16]} 5. b4 {[%emt 0:00:01]} g6 {[%emt 0:01:01]} (5... e6 $11) 6. e3 {[%emt 0:00:04]} Bg7 {[%emt 0:00:02]} 7. Bb2 {[%emt 0:00:25]} Ne4 {[%emt 0:00:13]} 8. Bb5+ {[%emt 0:01:10] White is slightly better.} Nc6 {[%emt 0:00:13]} 9. Nd4 {[%emt 0:00:18][%cal Bf3d4,Bd4b3,Bb3a5][%mdl 32]} Bd7 {[%emt 0:00:55]} 10. f3 {[%emt 0:02:00]} Nf6 {[%emt 0:00:41]} 11. O-O {[%emt 0:00:41]} O-O {[%emt 0:00:23]} 12. Bxc6 {[%emt 0:01:17]} bxc6 {[%emt 0:00:10]} 13. a4 {[%emt 0:00:06]} (13. Nb3 $11) 13... e5 {[%emt 0:00:52]} 14. Nb3 {[%emt 0:00:00]} Qb8 {[%emt 0:00:02]} 15. Qd2 {[%emt 0:00:13]} (15. Nxa5 $2 Rxa5 16. e4 Ra7 $19 (16... dxe4 $2 17. fxe4 Ra7 18. Re1 $19)) 15... g5 $2 {[%emt 0:01:43] [#] White stays focused until the end.} (15... axb4 $1 $11 16. cxb4 Bh6) 16. Nxa5 $18 {[%emt 0:00:10]} g4 {[%emt 0:00:01]} 17. c4 {[%emt 0:00:40]} gxf3 {[%emt 0:00:12]} 18. gxf3 {[%emt 0:00:06][%cal Bg2f3,Bf3f4,Bf4f5][%mdl 32]} (18. Rxf3 $2 Ne4 19. Qe1 Rxa5 $17) 18... Kh8 {[%emt 0:00:39]} (18... Bh6 $142) 19. Kh1 {[%emt 0:00:09]} Rg8 {[%emt 0:00:28]} 20. b5 $2 {[%emt 0:00:08]} (20. Rg1 $18 {has better winning chances.}) 20... e4 $2 {[%emt 0:01:17]} (20... Bh6 $16 {is a better defense.}) 21. f4 {[%emt 0:00:24]} (21. bxc6 Bh3 22. Rg1 exf3 (22... Rxa5 23. Rxg7 Kxg7 24. Qc3 $19) 23. Rxg7 (23. cxd5 $2 Ne4 $19) 23... Kxg7 $19) 21... Ng4 {[%emt 0:00:46][%cal Oa8a5]} 22. Bxg7+ {[%emt 0:00:56]} (22. Nxc6 Bxc6 23. Rg1 (23. cxd5 Bxd5 24. Rg1 Bxb2 $11) (23. Bxg7+ Rxg7 24. bxc6 dxc4 $18) 23... Qc8 (23... Bxb2 24. Qxb2+ f6 25. Rxg4 $18) 24. bxc6 dxc4) 22... Rxg7 {[%emt 0:00:01]} 23. Nxc6 {[%emt 0:00:01]} Qf8 {[%emt 0:00:37]} (23... Bxc6 $142 24. bxc6 dxc4) 24. Qd4 {[%emt 0:00:21]} (24. Qxd5 Nxh2 25. Nd2 (25. Kxh2 $2 Rg6 $19) 25... Bxc6 26. Qxc6 Rg6 $17) ({White should try} 24. Nc3 $18 Qxc5 25. Nxd5 (25. Qxd5 $2 Qxe3 26. Ne5 Rag8 $19) 25... Bxc6 26. bxc6 Qxc6 27. a5) 24... dxc4 {[%emt 0:00:04][%mdl 8192]} (24... Bxc6 $16 25. bxc6 f6) 25. Nc3 $2 {[%emt 0:00:08]} (25. Qxd7 $18 Qxc5 26. Ne5 Nxe3 27. Nc3 (27. Nxf7+ Kg8 $16) 27... Nxf1 28. Rxf1) 25... Be6 $2 {[%emt 0:00:02][%mdl 8192]} (25... f6 $14 26. Qd6 (26. Qxe4 Re8 $19) (26. Nxe4 Qe8 $11) 26... Qf7) 26. f5 {[%emt 0:00:10]} Bc8 {[%emt 0:00:01]} 27. Ra2 {[%emt 0:00:07]} f6 {[%emt 0:00:03]} 28. Rg2 {[%emt 0:00:01]} (28. Qxc4 $2 {perishes.} Nxe3 29. Qd4 (29. Qxe4 $2 Nxf1 30. Qd5 Bb7 $19) 29... Nxf1 $19) 28... Nh6 {[%emt 0:00:05]} 29. Rxg7 {[%emt 0:00:30]} Kxg7 {[%emt 0:00:08]} 30. Qd5 {[%emt 0:00:42]} Kh8 {[%emt 0:00:00]} 31. Nxe4 {[%emt 0:00:10]} Rxa4 {[%emt 0:00:00][%cal Ba8a4,Ba4a2,Ba2d2][%mdl 32]} 32. Nd6 {[%emt 0:00:01]} Bd7 {[%emt 0:00:03]} 33. Nd4 {[%emt 0:00:00]} Ra2 {[%emt 0:00:04]} 34. Rg1 {[%emt 0:00:18]} ({Not} 34. Nxc4 Ng4 35. h4 (35. Qxd7 Qg8 $11) 35... Be8 $18) 34... Rd2 {[%emt 0:00:01]} 35. c6 {[%emt 0:00:05]} Be8 {[%emt 0:00:04]} 36. Qe6 {[%emt 0:00:05] White mates.} c3 {[%emt 0:00:05]} 37. Qxe8 {[%emt 0:00:09]} Qxe8 {[%emt 0:00:03]} 38. Nxe8 {[%emt 0:00:01] A dynamic duo of knights.} c2 {[%emt 0:00:03] [#]} 39. Nxc2 $1 {[%emt 0:00:01]} Rxc2 {[%emt 0:00:01]} (39... Nxf5 40. Nxf6) 40. Nxf6 {[%emt 0:00:04] KRN-KRN} Rc5 {[%emt 0:00:03]} 41. e4 {[%emt 0:00:03]} Rxb5 {[%emt 0:00:02]} 42. Rc1 {[%emt 0:00:02]} Rb8 {[%emt 0:00:06]} 43. c7 {[%emt 0:00:01]} Rc8 {[%emt 0:00:00]} 44. Nd5 {[%emt 0:00:01]} Ng4 {[%emt 0:00:03]} 45. Ne7 {[%emt 0:00:02]} Rg8 {[%emt 0:00:05]} 46. Nxg8 {[%emt 0:00:02] Weighted Error Value: White=0.57/Black=0.67.  Loses game:     	---       	Black=4      Missed win:     	White=2     	---        Mistake:       	White=2     	Black=2      Inaccurate:     	White=1     	---        OK:         	White=5     	Black=5      Best:        	White=1     	---} (46. c8=R $2 Nf2#) 1-0